Cogmind - Beta 17 @@@ ROGUE MODE // 2026.07.09 @ 12:12:20 Player: teag2 Result: Destroyed by YO-RK0(R) with Subdweller Laser Performance ------------- Evolutions (2) 1000 Regions Visited (5) 1000 Robots Destroyed (135) 675 Value Destroyed (4050) 4050 Prototype IDs (20) 400 Alien Tech Used (0) 0 Bonus (261) 261 TOTAL SCORE: 7386 Bonus ------- High Alert Combat Kills 162 Follower Combat Kills 99 Cogmind --------- Core Integrity 0/550 Matter 258/300 Energy 240/240 System Corruption 4% Temperature Cool (6) Movement Walking (190) Ox1 Location -8/Recycling Parts ------- > --- POWER (1) -------- Nuclear Core > --- PROPULSION (4) --- Armored Treads Aluminum Leg Aluminum Leg Carbon-fiber Leg > --- UTILITY (4) ------ Large Storage Unit Improved Weapon Shielding Improved Light Armor Plating Hardlight Generator > --- WEAPON (2) ------- Rocket Launcher Makeshift Hammer > --- INVENTORY (15) --- Light Treads Light Treads Improved VTOL Module Improved VTOL Module Improved VTOL Module Improved Heat Sink Improved Signal Interpreter Improved Utility Shielding Shield Generator System Shield Field Recycling Unit (3) Heavy Particle Gun Advanced Beam Rifle Enhanced Autogun Enhanced Autogun Peak State ------------ > --- POWER ------------ Ion Engine > --- PROPULSION ------- Armored Wheel Subdweller Monowheel > --- UTILITY ---------- Large Storage Unit Tower Shield Self-contained Transmogrifier > --- WEAPON ----------- Battle Rifle Heavy Battle Rifle > --- INVENTORY -------- Light Ion Engine Light Deuterium Engine Improved Heat Sink Improved Targeting Computer Makeshift Kinetic Plating Field Recycling Unit High-powered Shotgun Grenade Launcher Makeshift Hammer [Rating: 43] Favorites ----------- Power Ion Engine Engine Ion Engine Power Core Light Nuclear Core Propulsion Light Treads Treads Light Treads Leg Aluminum Leg Wheel Subdweller Monowheel Utility Improved Heat Sink Device Improved Heat Sink Storage Large Storage Unit Processor Improved Targeting Computer Hackware Hacking Suite Protection Makeshift Kinetic Plating Weapon Grenade Launcher Energy Gun Pulse Rifle Energy Cannon Heavy Particle Cannon Ballistic Gun Light Assault Rifle Launcher Grenade Launcher Impact Weapon Makeshift Hammer Build | -11 -10 -10 -8 -8 -8 ------- Run | Yrd Mat Sub Mat Sto Rec Slots Evolved 4 | . . . 4 . . Power . | . . . . . . Propulsion 2 | . . . 2 . . Utility 2 | . . . 2 . . Weapon . | . . . . . . Parts Attached 75 | 6 7 8 31 19 4 Power 11 | 1 1 1 5 2 1 Engine 9 | 1 1 1 5 1 . Core 2 | . . . . 1 1 Reactor . | . . . . . . Propulsion 24 | 2 1 1 13 5 2 Treads 14 | 2 . . 9 1 2 Leg 9 | . 1 . 4 4 . Wheel 1 | . . 1 . . . Hover . | . . . . . . Flight . | . . . . . . Utility 23 | 1 3 3 6 10 . Device 7 | . 1 1 2 3 . Storage 4 | 1 2 . 1 . . Processor 1 | . . . 1 . . Hackware 1 | . . . 1 . . Protection 10 | . . 2 1 7 . Artifact . | . . . . . . Weapon 17 | 2 2 3 7 2 1 Energy Gun 6 | 2 1 . 2 1 . Energy Cannon 2 | . . . 2 . . Ballistic Gun 5 | . 1 . 3 1 . Ballistic Cannon . | . . . . . . Launcher 3 | . . 2 . . 1 Special Weapon . | . . . . . . Impact Weapon 1 | . . 1 . . . Slashing Weapon . | . . . . . . Piercing Weapon . | . . . . . . Special Melee Weapon . | . . . . . . Unidentified Prototypes 4 | . . 1 3 . . Parts Lost 36 | . 1 3 15 15 2 Power 6 | . . 1 2 2 1 Propulsion 14 | . 1 1 6 5 1 Utility 10 | . . . 4 6 . Weapon 6 | . . 1 3 2 . Highest Loss Streak 5 | . 1 2 5 3 1 To Critical Strikes . | . . . . . . Average Backups 9 | . 5 6 12 11 14 Power 1 | . 2 1 3 . . Propulsion . | . . . . 1 5 Utility 3 | . . 1 3 5 5 Weapon 3 | . 2 3 4 4 4 Tool/Special . | . . . . . . Unused Backups 19 | . 1 1 3 3 11 Power 2 | . 1 . 1 . . Propulsion 6 | . . . . 1 5 Utility 6 | . . 1 . 1 4 Weapon 5 | . . . 2 1 2 Tool/Special . | . . . . . . Average Slot Usage (%) 87 | . 92 80 91 79 99 Engine 9 | . 13 11 8 4 7 Treads 14 | . 17 10 19 10 3 Leg 9 | . 8 1 9 10 33 Wheel 2 | . . 10 3 . . Device 8 | . 9 4 10 9 9 Storage 9 | . 14 8 8 9 9 Processor 1 | . . . 3 . . Protection 8 | . . 9 8 15 18 Energy Gun 6 | . 14 1 6 2 . Energy Cannon 2 | . . . 4 3 . Ballistic Gun 6 | . 13 2 4 6 . Launcher 3 | . . 17 1 . 8 Impact Weapon 1 | . . . . 5 9 Peak Build Rating 43 | 6 10 39 43 35 35 Average Rating 21 | 4 8 21 28 23 32 On Entrance 18 | . 6 10 38 21 35 Avg Prop Armor Cover (%) 7 | . 8 7 8 . 8 Naked Turns . | . . . . . . Heaviest Build 69 | 14 15 49 69 45 46 Greatest Support 80 | 40 40 32 80 80 50 Greatest Overweight (x) 10 | 1 3 4 3 10 1 Average Overweight (x) . | . . 1 . . . Largest Inventory Capacity 15 | 8 8 8 15 15 15 Average Capacity 11 | 7 7 6 14 15 15 Most Carried 15 | 3 8 8 15 15 15 Average Carried 9 | . 5 6 12 11 14 Final Capacity 15 | 8 8 5 15 15 15 Final Carried 15 | 1 6 5 11 15 15 Transmogrified Parts 2 | . . 2 . . . Integrity Recovered 17 | . . 17 . . . Class Distribution -------------------- 52% | Scavenger-Mutant 47% | Mutant Dominant Class ---------------- Mutant | -10/Materials Mutant | -10/Subcaves Scavenger-Mutant | -8/Materials Scavenger-Mutant | -8/Storage Scavenger-Mutant | -8/Recycling Resources | -11 -10 -10 -8 -8 -8 ----------- Run | Yrd Mat Sub Mat Sto Rec Matter Collected 2373 | 215 478 225 946 458 51 Remotely . | . . . . . . Salvage Created 4828 | . 537 339 1750 2161 41 Parts 217 | . 26 23 103 62 3 Haulers Intercepted 9 | . 2 . 4 3 . Recyclers Shooed 2 | . . . 1 1 . Parts Field Recycled 16 | . . . 16 . . Retrieved Matter 53 | . . . 53 . . Parts Self-Destructed 17 | . . 17 . . . Prevented . | . . . . . . Parts Restored . | . . . . . . Kills | -11 -10 -10 -8 -8 -8 ------- Run | Yrd Mat Sub Mat Sto Rec Combat Hostiles Destroyed 96 | . 10 16 34 35 1 Melee 10 | . . . . 9 1 Guns 31 | . 9 1 16 5 . Cannons 16 | . . . 9 7 . AOE 23 | . 1 15 7 . . Classes Destroyed 13 | . 4 1 6 2 . Worker 10 | . . . 5 5 . Builder 7 | . . . 3 4 . Hauler 9 | . 2 . 4 3 . Recycler 3 | . . . . 3 . Operator 2 | . . . 2 . . Watcher 8 | . 3 . 4 1 . Swarmer 17 | . 3 4 7 3 . Grunt 52 | . 7 2 18 25 . Brawler 2 | . . . 1 1 . Protector 1 | . . . . 1 . Sentry 11 | . . . 6 5 . Specialist 2 | . . . 2 . . Subdweller 11 | . . 10 . . 1 Best Kill Streak 9 | . 3 4 9 5 1 Combat Bots Only 5 | . 3 4 5 4 1 Max Kills in Single Turn 6 | . 1 3 6 2 1 Gunslinging 1 | . . . 1 . . Exploded 3 | . 1 3 3 . . Melee 1 | . . . . 1 1 Uniques/NPCs Destroyed . | . . . . . . Combat | -11 -10 -10 -8 -8 -8 -------- Run | Yrd Mat Sub Mat Sto Rec Hostile Shots Fired 514 | . 56 37 211 197 13 Missed 160 | . 21 14 60 57 8 Hits 354 | . 35 23 151 140 5 Melee 2 | . . . 2 . . Projectile 352 | . 35 23 149 140 5 AOE 4 | . . 3 . 1 . Critical Strikes 19 | . 2 1 7 9 . Actively Blocked 1 | . . . . 1 . Damage Taken 6162 | . 567 569 2693 2110 223 Core 783 | . 140 73 275 230 65 Absorbed by Shields 72 | . . . . 72 . Redirected to Shielding 86 | . . . . 74 12 Ignored by Resistances 88 | . . 10 78 . . Regen/Repaired (Parts) 320 | . 136 . 74 110 . Core Remaining (%) 57 | 100 . 14 . . . Volleys Fired 309 | . 58 29 156 65 1 Largest 2 | . 2 2 2 2 1 Hottest 138 | . 85 65 138 138 33 Shots Fired 523 | . 114 45 262 99 3 Gun 374 | . 114 18 177 65 . Cannon 114 | . . . 80 34 . Launcher 35 | . . 27 5 . 3 Special . | . . . . . . Kinetic 202 | . 58 6 99 39 . Thermal 262 | . 32 12 158 60 . Explosive 35 | . . 27 5 . 3 Electromagnetic 24 | . 24 . . . . Robot Hit Streak 21 | . 9 21 11 7 8 Robot Miss Streak 4 | . 4 1 3 3 . Penetration Max . | . . . . . . Secondary Targets 3 | . 2 . 1 . . Max Gunslinging Chain 1 | . 1 . 1 . . Shots Hit Robots 379 | . 68 27 158 121 5 Core Hits 173 | . 28 27 82 35 1 Critical Kills 4 | . . . 1 3 . Critical Parts Destroyed 16 | . . . 1 15 . Critical Strikes 28 | . 2 . 7 18 1 Burn 7 | . 2 . 5 . . Meltdown 1 | . . . 1 . . Destroy 1 | . . . 1 . . Smash 19 | . . . . 18 1 Melee Attacks 126 | . . 8 . 108 10 Impact 126 | . . 8 . 108 10 Slashing . | . . . . . . Piercing . | . . . . . . Sneak Attacks 11 | . . . . 11 . Combat Hostiles . | . . . . . . Follow-up Attacks . | . . . . . . Damage Inflicted 10457 | . 867 1365 3629 4433 163 Guns 3880 | . 794 226 2254 606 . Cannons 1475 | . . . 875 600 . Explosions 1674 | . 68 1139 467 . . Melee 3374 | . . . . 3211 163 Ramming 54 | . 5 . 33 16 . Kinetic 1919 | . 280 40 1294 305 . Thermal 3282 | . 360 186 1835 901 . Explosive 1606 | . . 1139 467 . . Electromagnetic 222 | . 222 . . . . Impact 3374 | . . . . 3211 163 Slashing . | . . . . . . Piercing . | . . . . . . Highest Corruption 4 | . . . 4 4 4 Average Corruption 3 | . . . 2 4 4 Corruption Purged . | . . . . . . Corruption Blocked . | . . . . . . Effects 81 | . . . 33 35 13 Message Errors 18 | . . . 4 10 4 Matter Fused 22 | . . . 16 4 2 Heat Flow Errors 11 | . . . 2 8 1 Energy Discharges 6 | . . . 1 3 2 Parts Rejected 3 | . . . 1 2 . Parts Fused 2 | . . . 1 1 . Data Loss (minor) 7 | . . . 2 3 2 Data Loss (major) 5 | . . . 4 1 . Misfires 6 | . . . 2 2 2 Weapon Failures 1 | . . . . 1 . Overload Shots . | . . . . . . Overflow Damage 1365 | . . . 32 1311 22 Projectiles 35 | . . . . 35 . Explosions 38 | . . . 32 . 6 Melee 1292 | . . . . 1276 16 Knockbacks 15 | . . . . 13 2 Impact 14 | . . . . 12 2 Kinetic . | . . . . . . Secondary 1 | . . . . 1 . Self-Inflicted Damage 264 | . 40 54 48 . 122 Shots 9 | . 1 3 2 . 3 Rammed 4 | . 2 . 2 . . Targets Rammed 10 | . 2 . 6 2 . Kicked 4 | . . . 2 2 . Crushed 2 | . . . 2 . . Highest Temperature 343 | . 343 . 282 212 124 Average Temperature 60 | . 66 . 51 73 63 Received Heat Transfer 2638 | . 192 81 1179 1156 30 Siege Activations . | . . . . . . Martial Activations . | . . . . . . Shielding Activations . | . . . . . . Robots Disrupted . | . . . . . . Combat Hostiles . | . . . . . . Robots Corrupted 22 | . . . . 22 . Combat Hostiles 14 | . . . . 14 . Parts Fried 32 | . . . . 32 . Impact Corruptions 49 | . . . . 48 1 Robots Melted 2 | . . . 2 . . Combat Hostiles 2 | . . . 2 . . Parts Melted 7 | . . . 7 . . Heat Transferred 6562 | . 901 444 3663 1554 . Parts Sabotaged . | . . . . . . Parts Stolen . | . . . . . . Parts Stripped . | . . . . . . Power Chain Reactions 1 | . 1 . . . . Alert | -11 -10 -10 -8 -8 -8 ------- Run | Yrd Mat Sub Mat Sto Rec Maximum Alert Level 2 | . . . 2 2 1 Low Security (%) 56 | 100 100 . 54 18 19 Level 1 28 | . . . 17 62 80 Level 2 14 | . . . 27 18 . Level 3 . | . . . . . . Level 4 . | . . . . . . Level 5 . | . . . . . . High Security . | . . . . . . Max Security . | . . . . . . Peak Influence 600 | . 78 . 478 600 265 Initial 230 | . . . 26 198 230 Average 174 | . 14 . 228 279 221 Influence Increases 3027 | . 391 160 1145 1164 167 Destroy 0b10 Robot/C 1740 | . 200 120 680 740 . Destroy 0b10 Robot/NC 200 | . 25 . 90 85 . Destroy Leader 414 | . 60 10 176 168 . Allied During Kill 17 | . . . . 17 . Successful Hack 65 | . 28 . 14 19 4 Select Force Hacks 180 | . 60 . . . 120 Disable Machine 90 | . . . 45 30 15 Destroy Structure 126 | . 3 . 80 15 28 Partial Spotted 15 | . . . 15 . . Lose Combat Pursuer 180 | . 15 30 45 90 . Influence Decreases 2848 | . 391 110 723 1045 579 Entered New Map 659 | . . . 24 274 361 Time Decay 1817 | . 381 108 559 571 198 Lost Part 322 | . 10 2 140 150 20 Lost Ally 50 | . . . . 50 . Squads Dispatched 18 | . 4 . 5 9 . Investigation 8 | . 3 . 2 3 . Extermination . | . . . . . . Reinforcement 7 | . 1 . 3 3 . Assault 2 | . . . . 2 . Garrison 1 | . . . . 1 . Intercept . | . . . . . . Searches Triggered . | . . . . . . Construction Impeded . | . . . . . . Haulers Reinforced . | . . . . . . Active Scanning Responses . | . . . . . . Cargo Convoy Interrupts . | . . . . . . Stealth | -11 -10 -10 -8 -8 -8 --------- Run | Yrd Mat Sub Mat Sto Rec Distress Signals 15 | . . . 11 4 . Communications Jammed . | . . . . . . Distress Signals . | . . . . . . Times Spotted 152 | . 20 18 58 54 2 Peak Tracking Total 6 | . 4 6 5 6 1 Tactical Retreats 8 | . 1 1 2 4 . Traps | -11 -10 -10 -8 -8 -8 ------- Run | Yrd Mat Sub Mat Sto Rec Traps Triggered 14 | . 5 1 4 4 . Indirectly . | . . . . . . Trap Hack Attempts . | . . . . . . Triggered . | . . . . . . Disarmed . | . . . . . . Reprogrammed . | . . . . . . Reused . | . . . . . . Traps Extracted . | . . . . . . Installed . | . . . . . . Triggered . | . . . . . . Machines | -11 -10 -10 -8 -8 -8 ---------- Run | Yrd Mat Sub Mat Sto Rec Machines Disabled 7 | . . 1 3 2 1 Max in Single Turn 1 | . . 1 1 1 1 Garrison Access 1 | . . . 1 . . Machines Repaired . | . . . . . . Machines Dismantled . | . . . . . . Machines Sabotaged . | . . . . . . Overloaded Fab Kills . | . . . . . . Hacking | -11 -10 -10 -8 -8 -8 --------- Run | Yrd Mat Sub Mat Sto Rec Machines Accessed 36 | . 8 2 11 9 6 Terminals 19 | . 5 . 5 7 2 Fabricators . | . . . . . . Repair Stations 3 | . 1 . 1 1 . Recycling Units 8 | . 2 . 2 . 4 Scanalyzers 2 | . . . 2 . . Garrison Access 2 | . . . 1 1 . Total Hacks 104 | . 26 12 34 18 14 Successful 57 | . 15 12 14 9 7 Failed 46 | . 11 . 19 9 7 Catastrophic 2 | . . . . 2 . Database Lockouts 1 | . . . 1 . . Manual 53 | . 19 . 15 7 12 Terminals 53 | . 18 . 14 14 7 Fabricators . | . . . . . . Repair Stations 10 | . 3 . 5 2 . Recycling Units 18 | . 5 . 6 . 7 Scanalyzers 8 | . . . 8 . . Garrison Access 3 | . . . 1 2 . Terminal Hacks 20 | . 2 12 1 5 . Record 11 | . . 11 . . . Part Schematic 1 | . 1 . . . . Prototype ID Bank 1 | . 1 . . . . Open Door 3 | . . . . 3 . Branch Access Points 1 | . . . 1 . . Emergency Access Points 1 | . . . . 1 . Terminal Index 1 | . . . . 1 . Proto ID Catalog 1 | . . 1 . . . Fabricator Hacks . | . . . . . . Repair Station Hacks 8 | . 2 . 4 2 . Scan Component 4 | . 1 . 2 1 . Repair 4 | . 1 . 2 1 . Recycling Unit Hacks 4 | . 1 . 2 . 1 Report Inventory 2 | . . . 1 . 1 Retrieve Components 2 | . 1 . 1 . . Scanalyzer 5 | . . . 5 . . Insert Component 1 | . . . 1 . . Analyze 1 | . . . 1 . . Retrieve Study 3 | . . . 3 . . Garrison Access Hacks 1 | . . . 1 . . Seal Access 1 | . . . 1 . . Unauthorized Hacks 19 | . 10 . 1 2 6 Terminals 13 | . 8 . 1 2 2 Assimilate 2 | . 2 . . . . Botnet 2 | . 1 . . 1 . Skim 9 | . 5 . 1 1 2 Fabricators . | . . . . . . Repair Stations . | . . . . . . Recycling Units 6 | . 2 . . . 4 Tunnel 6 | . 2 . . . 4 Scanalyzers . | . . . . . . Garrison Access . | . . . . . . Data Cores Recovered . | . . . . . . Used . | . . . . . . Hacking Detections 22 | . 7 . 6 7 2 Full Trace Events 4 | . . . 2 2 . Feedback Events . | . . . . . . Feedback Blocked . | . . . . . . Robot Schematics Acquired . | . . . . . . Robots Built . | . . . . . . Authchips . | . . . . . . Time . | . . . . . . Total Robot Build Rating . | . . . . . . Part Schematics Acquired 2 | . 1 . 1 . . Parts Built . | . . . . . . Authchips . | . . . . . . Time . | . . . . . . Total Part Build Rating . | . . . . . . Part Studies Acquired 3 | . . . 3 . . Parts Repaired 4 | . 1 . 2 1 . Time 121 | . 13 . 70 38 . Parts Recycled . | . . . . . . Recycled Matter . | . . . . . . Retrieved Matter . | . . . . . . Retrieved Components 17 | . 10 . 7 . . Parts Scanalyzed 1 | . . . 1 . . Part Schematics Acquired 1 | . . . 1 . . Parts Damaged . | . . . . . . Bothacking | -11 -10 -10 -8 -8 -8 ------------ Run | Yrd Mat Sub Mat Sto Rec Used RIF Installer . | . . . . . . Robots Hacked . | . . . . . . Non-combat . | . . . . . . Combat . | . . . . . . Robot Hacks Applied . | . . . . . . Relay Couplers Released . | . . . . . . Fabnet Peak Effective % . | . . . . . . Robots Rewired . | . . . . . . Allies Hacked . | . . . . . . Hacks Repelled . | . . . . . . Allies | -11 -10 -10 -8 -8 -8 -------- Run | Yrd Mat Sub Mat Sto Rec Total Allies 2 | . . . . 2 . Largest Group 2 | . . . . 2 . Highest-Rated Group 62 | . . . . 62 . Highest-Rated Ally 31 | . . . . 31 . Total Orders 3 | . . . . 3 . EXPLORE 3 | . . . . 3 . Ally Attacks 24 | . . . . 24 . Total Damage 352 | . . . . 352 . Kills 3 | . . . . 3 . Allies Corrupted . | . . . . . . Allies Melted . | . . . . . . Intel | -11 -10 -10 -8 -8 -8 ------- Run | Yrd Mat Sub Mat Sto Rec Active Infowar (turns) . | . . . . . . Robot Analysis Total . | . . . . . . Derelict Logs Recovered 1 | . . 1 . . . Drone Launches 4 | . . . . 4 . Drone Recoveries 3 | . . . . 3 . Exploration | -11 -10 -10 -8 -8 -8 ------------- Run | Yrd Mat Sub Mat Sto Rec Turns Passed 7629 | 136 1863 1254 2238 1728 410 Spaces Moved 3935 | 83 1041 883 1035 614 279 Core 52 | 14 15 . . 23 . Treads 2059 | 69 1010 96 594 290 . Legs 767 | . 16 . 171 301 279 Wheels 1057 | . . 787 270 . . Hover . | . . . . . . Flight . | . . . . . . Fastest Speed 50 | 50 100 112 100 120 120 Average Speed 155 | 147 159 128 156 196 134 Slowest Speed 550 | 160 200 240 270 550 190 Overloaded Moves . | . . . . . . Propulsion Burnouts . | . . . . . . Robots Hopped . | . . . . . . Potential Cave-ins 2 | . . . 2 . . Cave-ins Triggered . | . . . . . . Exploration Rate (%) 60 | 4 97 59 69 77 56 Regions Visited 5 Branch Regions 3 Pre-discovered Areas 9 | . 4 1 . . 4 Known Exits Taken 1 | . . . 1 . . Unknown Exits Taken 4 | 1 1 1 . 1 . Scrap Searched . | . . . . . . Spaces Dug 31 | . . . 30 1 . Terrain Destroyed 280 | . 2 151 86 11 30 Melee 1 | . . . . 1 . Projectile 53 | . . . 43 10 . AOE 226 | . 2 151 43 . 30 Terrain Rammed . | . . . . . . Walls Destroyed . | . . . . . . Machines Disabled . | . . . . . . Actions | -11 -10 -10 -8 -8 -8 --------- Run | Yrd Mat Sub Mat Sto Rec Total 4806 | 96 1138 944 1395 930 303 Wait 186 | . 7 3 103 67 6 Move 3931 | 83 1040 882 1034 613 279 Hop . | . . . . . . Pick Up 97 | 7 13 6 38 31 2 Fast Attach 20 | . 5 2 7 5 1 Attach 64 | 6 6 4 24 23 1 Detach 8 | . 1 1 4 2 . Swap 28 | . 1 6 12 7 2 Drop 27 | . 5 3 11 7 1 Fire 309 | . 58 29 156 65 1 Melee 126 | . . 8 . 108 10 Ram . | . . . . . . Kick 4 | . . . 2 2 . Crush 6 | . 2 . 4 . . Escape Stasis . | . . . . . . Rewire . | . . . . . . Trap . | . . . . . . Miscellaneous . | . . . . . . Route ------- -11/Scrapyard -10/Materials (discovered 6 exits: *Mat x3 / [*Min x2] / *Sub) -10/Subcaves (discovered 2 exits: *Mat / *Rec) -8/Materials (discovered 3 exits: [*Fac x2] / *Sto) -8/Storage -8/Recycling (discovered 1 exit: Fac) History --------- Turn | Location | Event 9 | -11/Scrapyard | Discovered new exit (range 16) 137 | -11/Scrapyard | Entered Materials 269 | -10/Materials | Discovered new exit (range 11) 315 | -10/Materials | Discovered new exit (range 6) 325 | -10/Materials | Build established: Mutant 400 | -10/Materials | Discovered new exit (range 11) 516 | -10/Materials | Discovered new exit (range 13) 665 | -10/Materials | Learned location of 2 exits from Mines 668 | -10/Materials | Discovered new exit (range 9) 728 | -10/Materials | Identified exit to Materials 783 | -10/Materials | Learned Storage security intel 959 | -10/Materials | Learned location of 1 exit from Recycling 976 | -10/Materials | Core integrity fell below 50% 1482 | -10/Materials | Repaired Lgt. Treads 2000 | -10/Materials | Entered Subcaves 2001 | -10/Subcaves | Approached by a straggling Scientist 2072 | -10/Subcaves | Visited Clippyterm 2079 | -10/Subcaves | Learned Factory stockpile data 2146 | -10/Subcaves | Core integrity fell below 20% 2210 | -10/Subcaves | Shifting Twisted Machinery released Hvy. Battle Rifle 2215 | -10/Subcaves | Shifting Twisted Machinery released Mak. Hammer 2566 | -10/Subcaves | Ambushed by Subdwellers from Twisted Machinery 2646 | -10/Subcaves | Shifting Twisted Machinery released Sub. Power Source 2655 | -10/Subcaves | Shifting Twisted Machinery released Sub. Laser 2770 | -10/Subcaves | Visited 4L-MR0's lab 2783 | -10/Subcaves | Found Tower Shield 2784 | -10/Subcaves | Attached Tower Shield, gained temporary slots: Power, Propulsion x2, Utility x2, Weapon x2 2787 | -10/Subcaves | Found Prototype Device 2787 | -10/Subcaves | Identified Sfc. Transmogrifier 3017 | -10/Subcaves | Discovered new exit (range 12) 3028 | -10/Subcaves | Ambushed by Subdweller buried in earth 3052 | -10/Subcaves | Shifting Twisted Machinery released Sub. Beam Cannon 3053 | -10/Subcaves | Shifting Twisted Machinery released Sub. Monowheel 3243 | -10/Subcaves | Discovered new exit (range 8) 3254 | -10/Subcaves | Entered Materials 3254 | -8/Materials | Evolved 4 slots: Propulsion x2, Utility x2 3319 | -8/Materials | Repaired Broken Sub. Monowheel 3346 | -8/Materials | Repaired Grenade Launcher 3656 | -8/Materials | Discovered new exit (range 15) 3836 | -8/Materials | Build established: Scavenger-Mutant 3983 | -8/Materials | Central database locked down 4205 | -8/Materials | Discovered new exit (range 16) 5009 | -8/Materials | Identified exit to Storage 5292 | -8/Materials | Discovered new exit (range 13) 5338 | -8/Materials | Lost 4 parts (1p2n1u) 5388 | -8/Materials | Lost 5 parts (1p2n2u) 5492 | -8/Materials | Entered Storage 5592 | -8/Storage | Core integrity fell below 50% 5619 | -8/Storage | Repaired Hvy. Particle Cannon 6256 | -8/Storage | Garrison activated, responded to threat 6273 | -8/Storage | Lost 3 parts (2u1w) 6320 | -8/Storage | Core integrity fell below 20% 6693 | -8/Storage | Met a pair of Derelict thieves 7216 | -8/Storage | Used back door to open Recycling access 7216 | -8/Storage | Discovered new exit (range 4) 7220 | -8/Storage | Entered Recycling 7221 | -8/Recycling | Identified exit to Factory 7630 | -8/Recycling | Destroyed by YO-RK0(R) with Subdweller Laser Last Messages --------------- Launcher. System corrupted: Rocket Launcher misfires. Carbon-fiber Leg destroyed. Destroyed Carbon-fiber Leg. JUS7F:P=LJXI,Y4Z6EREQKE#|0P The unstable cave ceiling collapses. Acquired Arm. Treads. Connecting with Recycling Unit... >>Force(Tunnel) DISCOVERED[-3/Research] Lgt. Angular Momentum Engine destroyed. Destroyed Lgt. Angular Momentum Engine. Acquired Nuclear Core. System corrupted: Heat flow error (+146). YO-RK0(R) knocked back. YO-RK0(R) suffers critical hit (Smash). YO-RK0(R) knocked back. Destroyed Sub. Monowheel. YO-RK0(R) system corrupted by crushing effect. XHGVSCIE%D,C/Q#WMEK2JA Map ----- +----------------------------------------------------+ | ???????????????????????????????????????????????? | | ???????????????????????????????????????????????? | | ??????????????????????????????????? ???????????? | | ??????????????????????????????????? ???????????? | | ??????????????????????????????????? ???????????? | | ??????????????????????? ??????????? ???????????? | | ??????????????????????? ??????????? ???????????? | | ??????????????????????? ?########## ???????????? | | ??????????????????????? ?# # ##?????????? | | ??????????????????????? ?# # !??????????? | | ??????????????????????# ?#! ] # ??????????? | | ??????????????????????# ?#= # !??????????? | | ??????????????????????# ## + #??????????? | | ??????????????????????# ## ! # #??????????? | | ??????????????????????# ## # #??????????? | | ??????????????????????# ## # ##?????????? | | ??????????????????????# ## *[[ #?????????? | | ??????????????????????# ####### #?????????? | | ?????????????????????## #???# # #????????? | | ?????????????????????# #??# # #????????? | | ?????????????????????## "##?## ########### | | ??????????????????????# " #??## | | ??????????????????????# " #???# | | ?????????????# ###Y#### ##### | | ???????????+ | | ???????????????######!!@######################## | | ????????????????????#!!R#??????????????????????? | | ????????????????????#####??????????????????????? | | ???????????????????????????????????????????????? | | ???????????????????????????????????????????????? | | ???????????????????????????????????????????????? | | | | | | | | | | | | | | | | | | | | | | | | | | | | | | | | | | | | | | | +----------------------------------------------------+ Best States ------------- Heat Dissipation 45 Energy Generation 18 Energy Capacity 265 Matter Stores 399 Matter Capacity 400 Sight Range 16 Terrain Scan Density 10 Armor Coverage 2000 Resistance: KI 10 Resistance: EM 15 Weapon Shielding 66 Evasion (%) 55 Targeting Accuracy 6 Recoil Reduction 4 Offensive Hacking 10 Item Schematics ----------------- Huge Storage Unit | -10/Materials | Hacked Field Recycling Unit | -8/Materials | Scanalyzed Robot Schematics ------------------ None Fabricated ------------ Nothing Repaired ---------- Lgt. Treads | 2% | -10/Materials Sub. Monowheel | 71% | -8/Materials | Broken Grenade Launcher | 5% | -8/Materials Hvy. Particle Cannon | 15% | -8/Storage Studied --------- Lgt. Nuclear Core | -8/Materials | Hacked Lgt. Deuterium Engine | -8/Materials | Hacked Hpw. Shotgun | -8/Materials | Hacked Alien Tech Used ----------------- None Achievements -------------- Mistaken Identity Challenges ------------ None Game ------ Seed StorageSiegeSuperbattery Manual? 0 Play Time 01:01:21 Cumulative 40.5 hours Start 2026.07.08 @ 21:27:53 End 2026.07.09 @ 12:12:20 Sessions 2 Manual Loads 0 Difficulty Rogue Special Mode None Game No. 32 Rogue 31 Adventurer 1 Explorer 0 Win Type - Total 1 Types 1/0/0/0/0/0/0/0/0/0 Lore% 28 Gallery% 35 Achievement% 36 Wizard Run 0 Options --------- Layout 1 ASCII 0 Keyboard 0 Movement Mouse Keybinds 0 Fullscreen 1 Font 32/SmallcapsGlow Map View 50x35 Zoom Use 0% Tactical HUD 0 Map Filters NONE Filters NONE Steam 1 RUN: 98082c0c-c8f5-4f07-b6c8-d9bf06c017d5